[Event "Titled Tuesday Blitz August 22 Late 2023"]
[White "angelgab3"]
[Black "Salazar Farias, Luis German"]
[BlackFideId "3902170"]
[WhiteElo "2570"]
[BlackElo "2466"]
[Result "1-0"]
[Round "10"]
[TimeControl "180+1"]
[Date "2023.08.22"]
[WhiteClock "0:00:33"]
[BlackClock "0:00:00"]
[Board "57"]

1. e4 {[%clk 0:03:00]}  c6 {[%clk 0:02:59]} 2. d4 {[%clk 0:03:00]}  d5 {[%clk 0:02:59]} 3. e5 {[%clk 0:03:01]}  Bf5 {[%clk 0:02:57]} 4. Nd2 {[%clk 0:03:01]}  e6 {[%clk 0:02:51]} 5. Nb3 {[%clk 0:03:01]}  Nd7 {[%clk 0:02:48]} 6. Nf3 {[%clk 0:03:02]}  Ne7 {[%clk 0:02:44]} 7. Be2 {[%clk 0:03:02]}  a6 {[%clk 0:02:40]} 8. O-O {[%clk 0:02:59]}  c5 {[%clk 0:02:39]} 9. dxc5 {[%clk 0:02:55]}  Nc6 {[%clk 0:02:39]} 10. Nbd4 {[%clk 0:02:55]}  Bg6 {[%clk 0:02:34]} 11. Nxc6 {[%clk 0:02:52]}  bxc6 {[%clk 0:02:35]} 12. b4 {[%clk 0:02:53]}  Qb8 {[%clk 0:02:30]} 13. Qd4 {[%clk 0:02:42]}  Be7 {[%clk 0:02:22]} 14. Bf4 {[%clk 0:02:35]}  Bxc2 {[%clk 0:02:17]} 15. Rfc1 {[%clk 0:02:30]}  Be4 {[%clk 0:02:11]} 16. Nd2 {[%clk 0:02:23]}  Bg6 {[%clk 0:02:04]} 17. Nb3 {[%clk 0:02:21]}  O-O {[%clk 0:01:50]} 18. Na5 {[%clk 0:02:14]}  Qc7 {[%clk 0:01:49]} 19. Bg3 {[%clk 0:02:11]}  Qc8 {[%clk 0:01:24]} 20. h4 {[%clk 0:02:07]}  f6 {[%clk 0:01:23]} 21. h5 {[%clk 0:01:34]}  fxe5 {[%clk 0:01:13]} 22. Bxe5 {[%clk 0:01:33]}  Nxe5 {[%clk 0:01:13]} 23. Qxe5 {[%clk 0:01:32]}  Bf6 {[%clk 0:01:13]} 24. Qh2 {[%clk 0:01:32]}  Bf5 {[%clk 0:01:05]} 25. Qd6 {[%clk 0:01:27]}  Bxa1 {[%clk 0:00:52]} 26. Rxa1 {[%clk 0:01:28]}  Qe8 {[%clk 0:00:32]} 27. Nxc6 {[%clk 0:01:22]}  Be4 {[%clk 0:00:30]} 28. Ne5 {[%clk 0:01:09]}  Rd8 {[%clk 0:00:20]} 29. Qxa6 {[%clk 0:01:08]}  Rf6 {[%clk 0:00:18]} 30. c6 {[%clk 0:01:04]}  Qf8 {[%clk 0:00:17]} 31. c7 {[%clk 0:01:03]}  Rc8 {[%clk 0:00:16]} 32. Nd7 {[%clk 0:01:02]}  Rxf2 {[%clk 0:00:13]} 33. Nxf8 {[%clk 0:01:00]}  Rxg2+ {[%clk 0:00:12]} 34. Kf1 {[%clk 0:00:58]}  Rxf8+ {[%clk 0:00:12]} 35. Ke1 {[%clk 0:00:58]}  Rg1+ {[%clk 0:00:13]} 36. Kd2 {[%clk 0:00:59]}  Rxa1 {[%clk 0:00:13]} 37. c8=Q {[%clk 0:01:00]}  Rxa2+ {[%clk 0:00:13]} 38. Qxa2 {[%clk 0:00:54]}  Rxc8 {[%clk 0:00:13]} 39. Qa6 {[%clk 0:00:55]}  Rc2+ {[%clk 0:00:13]} 40. Ke3 {[%clk 0:00:56]}  Kf7 {[%clk 0:00:13]} 41. Qb7+ {[%clk 0:00:52]}  Kf6 {[%clk 0:00:13]} 42. Qb8 {[%clk 0:00:52]}  g6 {[%clk 0:00:09]} 43. Qf4+ {[%clk 0:00:45]}  Ke7 {[%clk 0:00:09]} 44. hxg6 {[%clk 0:00:36]}  hxg6 {[%clk 0:00:09]} 45. b5 {[%clk 0:00:36]}  Rc3+ {[%clk 0:00:04]} 46. Kd4 {[%clk 0:00:36]}  Rc2 {[%clk 0:00:04]} 47. Bd3 {[%clk 0:00:31]}  Bxd3 {[%clk 0:00:04]} 48. Kxd3 {[%clk 0:00:32]}  Rc4 {[%clk 0:00:05]} 49. Qb8 {[%clk 0:00:32]}  Kf6 {[%clk 0:00:04]} 50. b6 {[%clk 0:00:32]}  g5 {[%clk 0:00:04]} 51. b7 {[%clk 0:00:32]}  g4 {[%clk 0:00:05]} 52. Qh8+ {[%clk 0:00:32]}  Kf5 {[%clk 0:00:00]} 53. b8=Q {[%clk 0:00:33]} 1-0


[Site "https://www.chess.com"]

[Event "Titled Tuesday Blitz August 22 Late 2023"]
[White "Leebit02"]
[Black "KrokerGuy"]
[WhiteElo "2549"]
[BlackElo "2464"]
[Result "1-0"]
[Round "10"]
[TimeControl "180+1"]
[Date "2023.08.22"]
[WhiteClock "0:00:32"]
[BlackClock "0:00:01"]
[Board "59"]

1. Nf3 {[%clk 0:03:00]}  Nf6 {[%clk 0:02:58]} 2. c4 {[%clk 0:02:59]}  e6 {[%clk 0:02:59]} 3. e3 {[%clk 0:02:56]}  d5 {[%clk 0:03:00]} 4. b3 {[%clk 0:02:57]}  b6 {[%clk 0:02:54]} 5. Bb2 {[%clk 0:02:57]}  Bb7 {[%clk 0:02:55]} 6. Nc3 {[%clk 0:02:53]}  Be7 {[%clk 0:02:48]} 7. Be2 {[%clk 0:02:53]}  O-O {[%clk 0:02:48]} 8. Qc2 {[%clk 0:02:54]}  c5 {[%clk 0:02:48]} 9. Rg1 {[%clk 0:02:45]}  Nc6 {[%clk 0:02:25]} 10. g4 {[%clk 0:02:40]}  d4 {[%clk 0:02:25]} 11. g5 {[%clk 0:01:56]}  dxc3 {[%clk 0:02:05]} 12. gxf6 {[%clk 0:01:55]}  Bxf6 {[%clk 0:01:27]} 13. Bxc3 {[%clk 0:01:51]}  Nb4 {[%clk 0:01:25]} 14. Qb2 {[%clk 0:01:38]}  Bxc3 {[%clk 0:00:54]} 15. Qxc3 {[%clk 0:01:37]}  f6 {[%clk 0:00:45]} 16. d4 {[%clk 0:01:19]}  a5 {[%clk 0:00:44]} 17. a3 {[%clk 0:01:17]}  Nc6 {[%clk 0:00:41]} 18. O-O-O {[%clk 0:01:16]}  cxd4 {[%clk 0:00:38]} 19. exd4 {[%clk 0:01:12]}  Qe7 {[%clk 0:00:36]} 20. Kb2 {[%clk 0:01:12]}  Rad8 {[%clk 0:00:29]} 21. Qe3 {[%clk 0:01:09]}  Rd7 {[%clk 0:00:26]} 22. c5 {[%clk 0:00:33]}  Rfd8 {[%clk 0:00:13]} 23. Bc4 {[%clk 0:00:32]}  Kf7 {[%clk 0:00:05]} 24. Bxe6+ {[%clk 0:00:30]}  Qxe6 {[%clk 0:00:03]} 25. Rxg7+ {[%clk 0:00:31]}  Kxg7 {[%clk 0:00:03]} 26. Qxe6 {[%clk 0:00:31]}  Re7 {[%clk 0:00:03]} 27. Rg1+ {[%clk 0:00:32]}  Kh8 {[%clk 0:00:01]} 28. Qxf6+ {[%clk 0:00:32]} 1-0


[Site "https://www.chess.com"]

[Event "Titled Tuesday Blitz August 22 Late 2023"]
[White "Lawson, Eric"]
[Black "Yang, Kevin"]
[WhiteFideId "2604116"]
[BlackFideId "30908485"]
[WhiteElo "2524"]
[BlackElo "2443"]
[Result "0-1"]
[Round "10"]
[TimeControl "180+1"]
[Date "2023.08.22"]
[WhiteClock "0:00:54"]
[BlackClock "0:00:05"]
[Board "62"]

1. e4 {[%clk 0:03:00]}  e6 {[%clk 0:02:56]} 2. d4 {[%clk 0:03:00]}  a6 {[%clk 0:02:57]} 3. f4 {[%clk 0:02:57]}  d5 {[%clk 0:02:57]} 4. e5 {[%clk 0:02:57]}  Ne7 {[%clk 0:02:56]} 5. Nf3 {[%clk 0:02:58]}  c5 {[%clk 0:02:56]} 6. dxc5 {[%clk 0:02:53]}  Nbc6 {[%clk 0:02:54]} 7. Be3 {[%clk 0:02:51]}  Nf5 {[%clk 0:02:52]} 8. Bf2 {[%clk 0:02:52]}  h5 {[%clk 0:02:47]} 9. c3 {[%clk 0:02:51]}  f6 {[%clk 0:02:25]} 10. Nbd2 {[%clk 0:02:46]}  fxe5 {[%clk 0:02:23]} 11. Nxe5 {[%clk 0:02:45]}  Nxe5 {[%clk 0:02:23]} 12. fxe5 {[%clk 0:02:45]}  Qc7 {[%clk 0:02:22]} 13. Nf3 {[%clk 0:02:41]}  Bxc5 {[%clk 0:02:19]} 14. Qd2 {[%clk 0:02:38]}  Bxf2+ {[%clk 0:02:10]} 15. Qxf2 {[%clk 0:02:38]}  Bd7 {[%clk 0:01:56]} 16. Bd3 {[%clk 0:02:36]}  O-O {[%clk 0:01:40]} 17. O-O {[%clk 0:02:21]}  Nh6 {[%clk 0:01:14]} 18. Kh1 {[%clk 0:02:08]}  Bb5 {[%clk 0:01:06]} 19. Bxb5 {[%clk 0:02:05]}  axb5 {[%clk 0:01:07]} 20. a3 {[%clk 0:01:58]}  Rf4 {[%clk 0:01:01]} 21. Qg3 {[%clk 0:01:55]}  Raf8 {[%clk 0:00:58]} 22. h3 {[%clk 0:01:48]}  R4f5 {[%clk 0:00:23]} 23. Rfe1 {[%clk 0:01:45]}  Rf4 {[%clk 0:00:17]} 24. Qg6 {[%clk 0:01:37]}  Qf7 {[%clk 0:00:16]} 25. Qxf7+ {[%clk 0:01:37]}  Kxf7 {[%clk 0:00:13]} 26. Nd4 {[%clk 0:01:37]}  Rf2 {[%clk 0:00:12]} 27. Rf1 {[%clk 0:01:34]}  Ke7 {[%clk 0:00:12]} 28. Kg1 {[%clk 0:01:33]}  Rxb2 {[%clk 0:00:12]} 29. Rxf8 {[%clk 0:01:31]}  Kxf8 {[%clk 0:00:13]} 30. Nxe6+ {[%clk 0:01:32]}  Kf7 {[%clk 0:00:13]} 31. Nd4 {[%clk 0:01:29]}  Ke7 {[%clk 0:00:12]} 32. a4 {[%clk 0:01:21]}  b4 {[%clk 0:00:11]} 33. cxb4 {[%clk 0:01:18]}  Rxb4 {[%clk 0:00:12]} 34. Nf3 {[%clk 0:01:14]}  Nf5 {[%clk 0:00:11]} 35. a5 {[%clk 0:01:14]}  Rb2 {[%clk 0:00:10]} 36. Rc1 {[%clk 0:01:13]}  Kd7 {[%clk 0:00:08]} 37. Rd1 {[%clk 0:01:12]}  Ne3 {[%clk 0:00:06]} 38. Rd3 {[%clk 0:01:09]}  Nxg2 {[%clk 0:00:02]} 39. Rxd5+ {[%clk 0:01:05]}  Ke7 {[%clk 0:00:03]} 40. Nd4 {[%clk 0:00:58]}  Nf4 {[%clk 0:00:02]} 41. Rd6 {[%clk 0:00:54]}  Nxh3+ {[%clk 0:00:02]} 42. Kf1 {[%clk 0:00:54]}  Nf4 {[%clk 0:00:02]} 43. Nf5+ {[%clk 0:00:53]}  Kf7 {[%clk 0:00:02]} 44. Rb6 {[%clk 0:00:52]}  Rxb6 {[%clk 0:00:01]} 45. axb6 {[%clk 0:00:53]}  Ke6 {[%clk 0:00:02]} 46. Nd6 {[%clk 0:00:53]}  Nd5 {[%clk 0:00:03]} 47. Nxb7 {[%clk 0:00:53]}  Nxb6 {[%clk 0:00:03]} 48. Nc5+ {[%clk 0:00:54]}  Kxe5 {[%clk 0:00:04]} 49. Nd3+ {[%clk 0:00:54]}  Ke4 {[%clk 0:00:04]} 50. Nf2+ {[%clk 0:00:55]}  Kf3 {[%clk 0:00:04]} 51. Nh3 {[%clk 0:00:55]}  Nd5 {[%clk 0:00:03]} 52. Ng5+ {[%clk 0:00:55]}  Kg4 {[%clk 0:00:03]} 53. Ne6 {[%clk 0:00:56]}  g6 {[%clk 0:00:03]} 54. Kf2 {[%clk 0:00:56]}  Nf4 {[%clk 0:00:02]} 55. Nf8 {[%clk 0:00:56]}  h4 {[%clk 0:00:02]} 56. Kg1 {[%clk 0:00:54]}  g5 {[%clk 0:00:03]} 57. Kh2 {[%clk 0:00:54]}  Kf5 {[%clk 0:00:03]} 58. Nd7 {[%clk 0:00:54]}  g4 {[%clk 0:00:03]} 59. Nc5 {[%clk 0:00:55]}  g3+ {[%clk 0:00:04]} 60. Kh1 {[%clk 0:00:56]}  Kg4 {[%clk 0:00:04]} 61. Ne4 {[%clk 0:00:56]}  Kf3 {[%clk 0:00:04]} 62. Ng5+ {[%clk 0:00:56]}  Kg4 {[%clk 0:00:04]} 63. Ne4 {[%clk 0:00:56]}  h3 {[%clk 0:00:05]} 64. Kg1 {[%clk 0:00:55]}  Ne2+ {[%clk 0:00:05]} 65. Kh1 {[%clk 0:00:54]}  g2+ {[%clk 0:00:05]} 66. Kh2 {[%clk 0:00:54]}  g1=Q# {[%clk 0:00:05]} 0-1


[Site "https://www.chess.com"]

[Event "Titled Tuesday Blitz August 22 Late 2023"]
[White "Hambleton, Aman"]
[Black "Bazilius, Augustinas"]
[WhiteFideId "2606577"]
[BlackFideId "12832251"]
[WhiteElo "2768"]
[BlackElo "2463"]
[Result "1-0"]
[Round "10"]
[TimeControl "180+1"]
[Date "2023.08.22"]
[WhiteClock "0:00:05"]
[BlackClock "0:00:26"]
[Board "65"]

1. d4 {[%clk 0:02:56]}  Nf6 {[%clk 0:02:52]} 2. Bf4 {[%clk 0:02:54]}  g6 {[%clk 0:02:50]} 3. Nc3 {[%clk 0:02:55]}  Bg7 {[%clk 0:02:48]} 4. e4 {[%clk 0:02:54]}  d6 {[%clk 0:02:48]} 5. Qd2 {[%clk 0:02:54]}  c6 {[%clk 0:02:48]} 6. O-O-O {[%clk 0:02:52]}  b5 {[%clk 0:02:44]} 7. f3 {[%clk 0:02:47]}  Qa5 {[%clk 0:02:40]} 8. Kb1 {[%clk 0:01:55]}  b4 {[%clk 0:02:38]} 9. Nce2 {[%clk 0:01:27]}  Qb6 {[%clk 0:02:36]} 10. h4 {[%clk 0:01:23]}  a5 {[%clk 0:02:32]} 11. Bh6 {[%clk 0:01:23]}  Bxh6 {[%clk 0:02:30]} 12. Qxh6 {[%clk 0:01:24]}  Nbd7 {[%clk 0:02:12]} 13. Nh3 {[%clk 0:01:17]}  c5 {[%clk 0:01:42]} 14. Ng5 {[%clk 0:00:58]}  c4 {[%clk 0:01:24]} 15. Qg7 {[%clk 0:00:51]}  Rf8 {[%clk 0:01:25]} 16. Nf4 {[%clk 0:00:18]}  c3 {[%clk 0:00:57]} 17. Bc4 {[%clk 0:00:15]}  e6 {[%clk 0:00:41]} 18. Bxe6 {[%clk 0:00:06]}  fxe6 {[%clk 0:00:30]} 19. Nfxe6 {[%clk 0:00:07]}  Nh5 {[%clk 0:00:29]} 20. Qxh7 {[%clk 0:00:05]}  Ndf6 {[%clk 0:00:30]} 21. Qxg6+ {[%clk 0:00:05]}  Ke7 {[%clk 0:00:25]} 22. Nxf8 {[%clk 0:00:05]}  Kxf8 {[%clk 0:00:26]} 23. Qf7# {[%clk 0:00:05]} 1-0


[Site "https://www.chess.com"]

[Event "Titled Tuesday Blitz August 22 Late 2023"]
[White "Pinheiro, Iung Alicio de O."]
[Black "Ozalp, Burak"]
[WhiteFideId "2104350"]
[BlackFideId "6314210"]
[WhiteElo "2580"]
[BlackElo "2402"]
[Result "1-0"]
[Round "10"]
[TimeControl "180+1"]
[Date "2023.08.22"]
[WhiteClock "0:00:11"]
[BlackClock "0:00:47"]
[Board "69"]

1. d4 {[%clk 0:03:00]}  d5 {[%clk 0:03:00]} 2. c4 {[%clk 0:02:59]}  e6 {[%clk 0:03:00]} 3. Nc3 {[%clk 0:02:58]}  Nf6 {[%clk 0:03:01]} 4. cxd5 {[%clk 0:02:58]}  exd5 {[%clk 0:03:01]} 5. Bg5 {[%clk 0:02:58]}  Be7 {[%clk 0:03:01]} 6. e3 {[%clk 0:02:58]}  O-O {[%clk 0:03:00]} 7. Bd3 {[%clk 0:02:55]}  c5 {[%clk 0:03:00]} 8. Nf3 {[%clk 0:02:39]}  Nc6 {[%clk 0:03:00]} 9. dxc5 {[%clk 0:02:37]}  Bxc5 {[%clk 0:02:57]} 10. O-O {[%clk 0:02:33]}  Bg4 {[%clk 0:02:56]} 11. Bxf6 {[%clk 0:02:09]}  Qxf6 {[%clk 0:02:55]} 12. Be2 {[%clk 0:02:04]}  Rad8 {[%clk 0:02:36]} 13. Rc1 {[%clk 0:01:47]}  Bb6 {[%clk 0:02:30]} 14. Nxd5 {[%clk 0:00:42]}  Qxb2 {[%clk 0:02:26]} 15. Rc2 {[%clk 0:00:35]}  Qa3 {[%clk 0:02:17]} 16. Rd2 {[%clk 0:00:34]}  Ba5 {[%clk 0:02:06]} 17. Rd3 {[%clk 0:00:32]}  Qxa2 {[%clk 0:02:06]} 18. h3 {[%clk 0:00:27]}  Be6 {[%clk 0:02:02]} 19. Nf4 {[%clk 0:00:22]}  Rxd3 {[%clk 0:01:58]} 20. Bxd3 {[%clk 0:00:22]}  Rd8 {[%clk 0:01:46]} 21. Nxe6 {[%clk 0:00:15]}  Qxe6 {[%clk 0:01:36]} 22. Qb1 {[%clk 0:00:13]}  g6 {[%clk 0:01:30]} 23. Rc1 {[%clk 0:00:13]}  Qd7 {[%clk 0:01:27]} 24. Bc4 {[%clk 0:00:13]}  Bc7 {[%clk 0:01:22]} 25. Qa2 {[%clk 0:00:12]}  Rf8 {[%clk 0:01:18]} 26. Ng5 {[%clk 0:00:12]}  Ne5 {[%clk 0:01:13]} 27. Bd5 {[%clk 0:00:11]}  h6 {[%clk 0:01:10]} 28. Ne4 {[%clk 0:00:11]}  Nd3 {[%clk 0:01:04]} 29. Nf6+ {[%clk 0:00:10]}  Kh8 {[%clk 0:01:02]} 30. Nxd7 {[%clk 0:00:11]}  Nxc1 {[%clk 0:01:02]} 31. Qb2+ {[%clk 0:00:11]}  f6 {[%clk 0:00:51]} 32. Qxc1 {[%clk 0:00:11]}  Rd8 {[%clk 0:00:47]} 33. Qxc7 {[%clk 0:00:11]} 1-0


[Site "https://www.chess.com"]

[Event "Titled Tuesday Blitz August 22 Late 2023"]
[White "Andrews, Todd"]
[Black "Grebeniuk, Semen"]
[WhiteFideId "2012456"]
[BlackFideId "14117509"]
[WhiteElo "2398"]
[BlackElo "2563"]
[Result "0-1"]
[Round "10"]
[TimeControl "180+1"]
[Date "2023.08.22"]
[WhiteClock "0:00:12"]
[BlackClock "0:00:25"]
[Board "70"]

1. e4 {[%clk 0:03:00]}  d5 {[%clk 0:02:56]} 2. exd5 {[%clk 0:03:00]}  Qxd5 {[%clk 0:02:57]} 3. Nc3 {[%clk 0:03:01]}  Qa5 {[%clk 0:02:57]} 4. d4 {[%clk 0:03:01]}  Nf6 {[%clk 0:02:58]} 5. Nf3 {[%clk 0:03:01]}  Bg4 {[%clk 0:02:59]} 6. h3 {[%clk 0:03:01]}  Bh5 {[%clk 0:02:59]} 7. g4 {[%clk 0:03:02]}  Bg6 {[%clk 0:03:00]} 8. Ne5 {[%clk 0:03:02]}  e6 {[%clk 0:03:01]} 9. Bg2 {[%clk 0:03:01]}  Be4 {[%clk 0:03:01]} 10. Kf1 {[%clk 0:02:55]}  Bxg2+ {[%clk 0:02:55]} 11. Kxg2 {[%clk 0:02:56]}  Nbd7 {[%clk 0:02:55]} 12. Nc4 {[%clk 0:02:45]}  Qa6 {[%clk 0:02:52]} 13. Qe2 {[%clk 0:02:29]}  O-O-O {[%clk 0:02:40]} 14. g5 {[%clk 0:02:11]}  Nd5 {[%clk 0:02:35]} 15. Nb5 {[%clk 0:02:10]}  Kb8 {[%clk 0:01:53]} 16. a4 {[%clk 0:02:09]}  Qc6 {[%clk 0:01:48]} 17. Qf3 {[%clk 0:01:59]}  Qxc4 {[%clk 0:01:45]} 18. Qxf7 {[%clk 0:01:53]}  a6 {[%clk 0:01:40]} 19. Nc3 {[%clk 0:01:51]}  Nxc3 {[%clk 0:01:35]} 20. bxc3 {[%clk 0:01:52]}  Bd6 {[%clk 0:01:28]} 21. Be3 {[%clk 0:01:49]}  Rhf8 {[%clk 0:01:18]} 22. Qxg7 {[%clk 0:01:46]}  Qxc3 {[%clk 0:01:11]} 23. Qxh7 {[%clk 0:01:39]}  Bf4 {[%clk 0:01:04]} 24. Qe4 {[%clk 0:01:18]}  Bxe3 {[%clk 0:00:56]} 25. fxe3 {[%clk 0:01:09]}  Qd2+ {[%clk 0:00:55]} 26. Kg3 {[%clk 0:01:09]}  Qf2+ {[%clk 0:00:51]} 27. Kg4 {[%clk 0:01:10]}  Rf5 {[%clk 0:00:34]} 28. Rab1 {[%clk 0:00:13]}  Nf6+ {[%clk 0:00:26]} 29. gxf6 {[%clk 0:00:12]}  Rg8# {[%clk 0:00:25]} 0-1


[Site "https://www.chess.com"]

[Event "Titled Tuesday Blitz August 22 Late 2023"]
[White "SergioMoralesG"]
[Black "Karttunen, Mika"]
[BlackFideId "502081"]
[WhiteElo "2424"]
[BlackElo "2612"]
[Result "0-1"]
[Round "10"]
[TimeControl "180+1"]
[Date "2023.08.22"]
[WhiteClock "0:00:03"]
[BlackClock "0:00:05"]
[Board "75"]

1. d4 {[%clk 0:03:00]}  d5 {[%clk 0:02:58]} 2. c4 {[%clk 0:03:00]}  e6 {[%clk 0:02:55]} 3. Nf3 {[%clk 0:03:00]}  Nf6 {[%clk 0:02:55]} 4. Nc3 {[%clk 0:03:01]}  Bb4 {[%clk 0:02:54]} 5. Bg5 {[%clk 0:03:00]}  h6 {[%clk 0:02:54]} 6. Bxf6 {[%clk 0:02:55]}  Qxf6 {[%clk 0:02:55]} 7. e3 {[%clk 0:02:52]}  O-O {[%clk 0:02:52]} 8. Qb3 {[%clk 0:02:51]}  Nc6 {[%clk 0:02:44]} 9. cxd5 {[%clk 0:02:42]}  exd5 {[%clk 0:02:44]} 10. Be2 {[%clk 0:02:40]}  Be6 {[%clk 0:02:33]} 11. O-O {[%clk 0:02:39]}  Bxc3 {[%clk 0:02:18]} 12. Qxc3 {[%clk 0:02:40]}  Rfc8 {[%clk 0:02:06]} 13. b4 {[%clk 0:02:38]}  Ne7 {[%clk 0:01:34]} 14. a4 {[%clk 0:02:18]}  c6 {[%clk 0:01:30]} 15. Rfc1 {[%clk 0:02:05]}  Nf5 {[%clk 0:01:28]} 16. Qb3 {[%clk 0:01:58]}  Nd6 {[%clk 0:01:00]} 17. Nd2 {[%clk 0:01:52]}  a6 {[%clk 0:00:55]} 18. Rc3 {[%clk 0:01:39]}  Bd7 {[%clk 0:00:38]} 19. Rac1 {[%clk 0:01:08]}  b5 {[%clk 0:00:38]} 20. a5 {[%clk 0:01:05]}  Nc4 {[%clk 0:00:38]} 21. Nf1 {[%clk 0:00:30]}  Re8 {[%clk 0:00:35]} 22. Ng3 {[%clk 0:00:28]}  g6 {[%clk 0:00:35]} 23. Qd1 {[%clk 0:00:20]}  h5 {[%clk 0:00:34]} 24. Rb1 {[%clk 0:00:18]}  h4 {[%clk 0:00:34]} 25. Nf1 {[%clk 0:00:17]}  Bf5 {[%clk 0:00:34]} 26. Rbc1 {[%clk 0:00:15]}  Re7 {[%clk 0:00:34]} 27. Nd2 {[%clk 0:00:15]}  Rae8 {[%clk 0:00:31]} 28. Nf3 {[%clk 0:00:14]}  g5 {[%clk 0:00:29]} 29. h3 {[%clk 0:00:14]}  Be4 {[%clk 0:00:29]} 30. Nh2 {[%clk 0:00:14]}  Qg7 {[%clk 0:00:28]} 31. Bf3 {[%clk 0:00:13]}  Bh7 {[%clk 0:00:27]} 32. Be2 {[%clk 0:00:13]}  f5 {[%clk 0:00:28]} 33. Nf3 {[%clk 0:00:12]}  f4 {[%clk 0:00:21]} 34. Bxc4 {[%clk 0:00:11]}  bxc4 {[%clk 0:00:20]} 35. Ne5 {[%clk 0:00:12]}  Rc7 {[%clk 0:00:16]} 36. exf4 {[%clk 0:00:10]}  gxf4 {[%clk 0:00:16]} 37. Qd2 {[%clk 0:00:10]}  Rf8 {[%clk 0:00:15]} 38. Rf3 {[%clk 0:00:10]}  Qg5 {[%clk 0:00:13]} 39. Re1 {[%clk 0:00:08]}  Bf5 {[%clk 0:00:13]} 40. Kh2 {[%clk 0:00:07]}  Be4 {[%clk 0:00:13]} 41. Rc3 {[%clk 0:00:06]}  Rg7 {[%clk 0:00:13]} 42. f3 {[%clk 0:00:06]}  Bf5 {[%clk 0:00:05]} 43. Ng4 {[%clk 0:00:06]}  Bxg4 {[%clk 0:00:06]} 44. hxg4 {[%clk 0:00:06]}  Re7 {[%clk 0:00:06]} 45. Rcc1 {[%clk 0:00:04]}  Rfe8 {[%clk 0:00:07]} 46. Rxe7 {[%clk 0:00:03]}  Rxe7 {[%clk 0:00:07]} 47. Re1 {[%clk 0:00:04]}  Re3 {[%clk 0:00:08]} 48. Rxe3 {[%clk 0:00:02]}  fxe3 {[%clk 0:00:08]} 49. Qe2 {[%clk 0:00:03]}  Qf4+ {[%clk 0:00:09]} 50. Kg1 {[%clk 0:00:03]}  c3 {[%clk 0:00:08]} 51. Qd3 {[%clk 0:00:02]}  c2 {[%clk 0:00:05]} 52. Qxc2 {[%clk 0:00:03]}  Qxd4 {[%clk 0:00:05]} 53. Qe2 {[%clk 0:00:02]}  Kf7 {[%clk 0:00:05]} 54. Kh2 {[%clk 0:00:02]}  Kf6 {[%clk 0:00:05]} 55. Kh3 {[%clk 0:00:02]}  Kg5 {[%clk 0:00:05]} 56. Qe1 {[%clk 0:00:02]}  Kg6 {[%clk 0:00:03]} 57. Qxh4 {[%clk 0:00:01]}  e2 {[%clk 0:00:04]} 58. Qe1 {[%clk 0:00:01]}  Qe3 {[%clk 0:00:04]} 59. Kh2 {[%clk 0:00:02]}  d4 {[%clk 0:00:04]} 60. g3 {[%clk 0:00:02]}  d3 {[%clk 0:00:05]} 61. Kg2 {[%clk 0:00:03]}  d2 {[%clk 0:00:05]} 62. Qb1+ {[%clk 0:00:03]}  Kg7 {[%clk 0:00:05]} 63. Qb2+ {[%clk 0:00:03]}  Kg8 {[%clk 0:00:06]} 64. Qa2+ {[%clk 0:00:03]}  Kf8 {[%clk 0:00:05]} 65. Qb2 {[%clk 0:00:03]}  e1=N+ {[%clk 0:00:05]} 66. Kf1 {[%clk 0:00:03]}  Qxf3+ {[%clk 0:00:04]} 67. Kg1 {[%clk 0:00:03]}  Qg2# {[%clk 0:00:05]} 0-1


[Site "https://www.chess.com"]

[Event "Titled Tuesday Blitz August 22 Late 2023"]
[White "Garcia Blanco, Omar"]
[Black "Ronka, Erik"]
[WhiteFideId "2287153"]
[BlackFideId "505080"]
[WhiteElo "2587"]
[BlackElo "2420"]
[Result "1-0"]
[Round "10"]
[TimeControl "180+1"]
[Date "2023.08.22"]
[WhiteClock "0:00:26"]
[BlackClock "0:00:06"]
[Board "76"]

1. e4 {[%clk 0:03:00]}  c5 {[%clk 0:02:59]} 2. c3 {[%clk 0:03:00]}  g6 {[%clk 0:02:54]} 3. d4 {[%clk 0:03:00]}  cxd4 {[%clk 0:02:51]} 4. cxd4 {[%clk 0:03:01]}  d5 {[%clk 0:02:51]} 5. exd5 {[%clk 0:03:00]}  Qxd5 {[%clk 0:02:51]} 6. Nc3 {[%clk 0:03:00]}  Qd6 {[%clk 0:02:49]} 7. Nf3 {[%clk 0:02:56]}  Bg7 {[%clk 0:02:49]} 8. Bc4 {[%clk 0:02:56]}  Nf6 {[%clk 0:02:47]} 9. O-O {[%clk 0:02:54]}  O-O {[%clk 0:02:47]} 10. h3 {[%clk 0:02:55]}  a6 {[%clk 0:02:44]} 11. a4 {[%clk 0:02:52]}  b6 {[%clk 0:02:43]} 12. Ne5 {[%clk 0:02:49]}  Bb7 {[%clk 0:02:38]} 13. Bf4 {[%clk 0:02:48]}  Qb4 {[%clk 0:02:22]} 14. Qe2 {[%clk 0:02:38]}  Nbd7 {[%clk 0:01:44]} 15. Na2 {[%clk 0:02:02]}  Qxa4 {[%clk 0:01:23]} 16. Nc3 {[%clk 0:01:48]}  Qb4 {[%clk 0:01:23]} 17. Ra4 {[%clk 0:01:48]}  Qd6 {[%clk 0:01:18]} 18. Nxg6 {[%clk 0:01:48]}  hxg6 {[%clk 0:01:11]} 19. Bxd6 {[%clk 0:01:47]}  exd6 {[%clk 0:01:12]} 20. Raa1 {[%clk 0:01:44]}  b5 {[%clk 0:01:11]} 21. Bb3 {[%clk 0:01:41]}  Rfe8 {[%clk 0:01:12]} 22. Qd2 {[%clk 0:01:41]}  b4 {[%clk 0:01:09]} 23. Ne2 {[%clk 0:01:37]}  a5 {[%clk 0:01:05]} 24. Nf4 {[%clk 0:01:35]}  Bh6 {[%clk 0:01:03]} 25. Rfe1 {[%clk 0:01:31]}  Kg7 {[%clk 0:00:52]} 26. g3 {[%clk 0:01:22]}  Ne4 {[%clk 0:00:30]} 27. Qd3 {[%clk 0:01:22]}  Ndf6 {[%clk 0:00:29]} 28. h4 {[%clk 0:01:16]}  Bxf4 {[%clk 0:00:24]} 29. gxf4 {[%clk 0:01:17]}  Rh8 {[%clk 0:00:24]} 30. d5 {[%clk 0:01:13]}  Nc5 {[%clk 0:00:21]} 31. Qh3 {[%clk 0:01:09]}  Nxd5 {[%clk 0:00:17]} 32. Bxd5 {[%clk 0:01:03]}  Bxd5 {[%clk 0:00:18]} 33. Rad1 {[%clk 0:01:02]}  Be6 {[%clk 0:00:18]} 34. Qg3 {[%clk 0:01:01]}  Bf5 {[%clk 0:00:17]} 35. Rxd6 {[%clk 0:01:00]}  Ne4 {[%clk 0:00:18]} 36. Rxe4 {[%clk 0:00:59]}  Bxe4 {[%clk 0:00:19]} 37. Qe3 {[%clk 0:00:58]}  Bf5 {[%clk 0:00:19]} 38. Qe5+ {[%clk 0:00:58]}  Kh6 {[%clk 0:00:19]} 39. Qf6 {[%clk 0:00:56]}  Rhf8 {[%clk 0:00:19]} 40. h5 {[%clk 0:00:55]}  Kh7 {[%clk 0:00:18]} 41. hxg6+ {[%clk 0:00:53]}  fxg6 {[%clk 0:00:18]} 42. Qe7+ {[%clk 0:00:45]}  Kg8 {[%clk 0:00:19]} 43. Qb7 {[%clk 0:00:39]}  a4 {[%clk 0:00:12]} 44. Qxb4 {[%clk 0:00:38]}  Rae8 {[%clk 0:00:10]} 45. Kg2 {[%clk 0:00:34]}  Re4 {[%clk 0:00:10]} 46. Rd4 {[%clk 0:00:34]}  Rxd4 {[%clk 0:00:06]} 47. Qxd4 {[%clk 0:00:35]}  Rb8 {[%clk 0:00:07]} 48. Qd5+ {[%clk 0:00:31]}  Kh7 {[%clk 0:00:07]} 49. Qf7+ {[%clk 0:00:29]}  Kh6 {[%clk 0:00:05]} 50. Qf6 {[%clk 0:00:26]}  Rb3 {[%clk 0:00:06]} 51. Qh8# {[%clk 0:00:26]} 1-0


[Site "https://www.chess.com"]